{"text_format":"1","workbook":"xlsx","n_sheets":3,"sheets":["INFO","NEP-01","NEP-02"],"not_rendered":{"charts":0,"images":1,"macros":0,"external_links":0,"defined_names":4,"comments":2,"pivot_tables":0},"unopened":[],"bounds":{"document_bytes":16777216,"sheet_cells":100000,"rows_first":2000,"rows_last":500,"rows_between":2000,"halvings":0,"cell_chars":16384,"cell_head_chars":4096},"cells_cut":0,"cells_raw":0,"read":"whole","date_system":"1900"}

{"sheet":"INFO","index":0,"n_rows":46,"n_cols":11,"rows_kept":46,"cut":false,"hidden":false,"merged":[[0,10,0,11],[4,0,5,9],[1,10,1,11],[2,10,2,11],[8,0,11,11],[44,0,44,11],[33,0,34,11],[24,0,26,11],[27,0,27,11],[41,0,42,11],[36,0,36,11],[37,0,38,11],[45,0,46,11],[7,0,7,11],[40,0,40,11],[32,0,32,11],[13,0,14,11],[20,0,21,11],[23,0,23,11],[28,0,28,11],[29,0,29,11],[30,0,30,11],[16,0,18,11]]}
[null,null,null,null,null,null,null,null,null,null,"Q199-03"]
[null,null,null,null,null,null,null,null,null,null,"Verze: 3.0"]
[null,null,null,null,null,null,null,null,null,null,"2024-01-19"]
[]
["Návrh neprůzvučných dveří GSD"]
[]
[]
["Popis výpočtu:"]
["Program je určen pro výpočet útlumu hluku mezi strojovnou (hlučný prostor) a místností (tichý prostor) nebo směrem do venkovního prostoru přes dělící nehomogenní stavební konstrukci. Výpočet umožňuje stanovit výslednou (\"průměrnou\") vzduchovou neprůzvučnost nehomogenní konstrukce pro 4 typy stavebních prvků. Výsledkem výpočtu je hladina akustického tlaku korigovaná filtrem A v místnosti nebo ve venkovním prostoru."]
[]
[]
[]
[]
["V případě jednočíselného výpočtu není nutné zadávat frekvenční spektrum zdroje hluku. Hladina akustického tlaku je vypočtena na základě koeficientů přizpůsobení spektru (C; Ctr) pro daný stavební prvek."]
[]
[]
["U frekvenčního výpočtu je nutné zadávat celá frekvenční spektra zdroje hluku, součinitele pohltivosti a vzduchové neprůzvučnosti stavebních prvků. Výpočet je tak přesnější, avšak vyžaduje podrobnější znalosti akustické problematiky."]
[]
[]
[]
["V případě, že si nebudete vědět rady, doporučujeme kontaktovat naše techniky, kteří Vám buď telefonicky poradí, nebo Vám výpočet pro konkrétní zadání za úhradu zpracují."]
[]
[]
["Organizace programu:"]
["Na listě NEP-01 je jednočíslený výpočet útlumu hluku nehomogenní stavební konstrukce, určený pro odbornou veřejnost. Na listě NEP-02 je pak frekvenční výpočet, určený pro školené projektanty nebo profesionální akustiky."]
[]
[]
["Jednotlivé listy lze libovolně kopírovat. Je tak možné v jednom souboru provádět výpočet různých konstrukcí."]
["Zadávají se hodnoty do žlutých polí, nápovědy jsou přímo u buněk, nebo formou komentářů (červený růžek)."]
["Šedá pole jsou mezivýsledky, zelená pole jsou konečné výsledky."]
["Podrobný uživatelský manuál je k dispozici na internetu www.greif.cz v katalogu ITS231-01."]
[]
["Nejistota výpočtu:"]
["U jednočíselného výpočtu se předpokládá nejistota ±4 dB. U frekvenčního výpočtu se nejistota výpočtu pohybuje dle přesnosti spektra tlumeného zdroje, většinou od 1,5 do 3 dB.\n"]
[]
[]
["Tisk výsledků:"]
["Vypočtené výsledky lze pro jednotlivé listy publikovat přímo na tiskárnu nebo do PDF.\nKaždý výpočet je rozdělen na 3 stránky: Zadání / Situace / Pomocné tabulky."]
[]
[]
["Odkaz na projekční katalogy:"]
["Internetová stránka www.greif.cz, sekce Výrobky / Stavební akustika / Neprůzvučné dveře\nZde je ke stažení katalog včetně manuálu k softwaru ITS231-01 - Neprůzvučné dveře GSD"]
[]
[]
["Kontakt:"]
["Vaše připomínky na zlepšení, případně objevené chyby můžete posílat na micka@greif.cz.\nV případě, že budete potřebovat pomoc s návrhem stavební konstrukce, kontaktujte naší technickou podporu."]

{"sheet":"NEP-01","index":1,"n_rows":47,"n_cols":47,"rows_kept":47,"cut":false,"hidden":false,"merged":[[1,8,2,11],[32,32,32,33],[14,32,14,33],[15,32,15,33],[9,32,9,33],[10,32,10,33],[11,32,11,33],[12,32,12,33],[45,13,45,14],[4,32,4,33],[31,28,31,29],[31,30,31,31],[31,32,31,33],[19,23,23,33],[16,23,18,33],[14,28,14,31],[15,28,15,31],[4,23,4,27],[4,28,4,31],[5,28,5,31],[5,32,5,33],[6,23,9,27],[29,23,29,27],[29,28,29,29],[28,28,28,29],[32,23,32,27],[32,28,32,29],[32,30,32,31],[27,17,28,19],[38,13,39,15],[10,26,10,27],[13,23,13,25],[13,26,13,27],[34,23,34,27],[35,23,35,27],[36,23,36,27],[38,23,38,27],[39,23,39,27],[10,19,13,19],[30,19,33,19],[10,13,11,13],[12,13,13,13],[30,13,31,13],[32,13,33,13],[27,13,28,15],[35,28,35,29],[35,30,35,31],[38,30,38,31],[35,0,35,11],[37,0,37,11],[43,0,43,11],[44,0,44,8],[44,10,44,11],[28,0,28,1],[32,0,32,11],[40,0,40,11],[28,6,28,11],[4,18,5,21],[7,13,8,15],[13,32,13,33],[7,17,8,19],[6,0,6,11],[7,0,7,11],[4,0,5,11],[25,0,25,7],[25,10,25,11],[22,0,22,11],[9,0,9,11],[23,0,23,11],[12,3,12,11],[13,3,13,11],[14,3,14,11],[24,18,25,21],[18,13,19,15],[5,23,5,25],[5,26,5,27],[10,23,10,25],[10,28,10,31],[11,28,11,31],[12,28,12,31],[13,28,13,31],[46,0,46,8],[46,10,46,11],[10,0,10,11],[33,0,33,11],[36,10,36,11],[36,0,36,8],[38,0,38,8],[38,10,38,11],[29,0,29,1],[29,6,29,11],[30,0,30,1],[30,6,30,11],[20,3,20,11],[19,3,19,11],[15,3,15,11],[18,3,18,11],[16,3,16,11],[17,3,17,11],[26,6,26,11],[26,0,26,1],[41,0,41,11],[45,0,45,11],[27,0,27,1],[27,6,27,11],[1,35,1,46],[2,35,2,36],[3,35,3,36],[4,35,4,36],[5,35,5,36],[2,41,2,42],[3,41,3,42],[4,41,4,42],[5,41,5,42],[2,37,2,38],[3,37,3,38],[4,37,4,38],[5,37,5,38],[2,39,2,40],[3,39,3,40],[4,39,4,40],[5,39,5,40],[1,23,1,33],[2,23,2,33],[25,23,25,33],[6,39,6,40],[46,13,46,14],[6,41,6,42],[7,41,7,42],[7,35,7,36],[7,37,7,38],[7,39,7,40],[6,35,6,36],[6,37,6,38],[6,28,6,31],[7,28,7,31],[8,28,8,31],[9,28,9,31],[6,32,6,33],[7,32,7,33],[8,32,8,33],[28,23,28,27],[33,23,33,27],[42,30,42,31],[42,32,42,33],[37,23,37,27],[40,23,40,27],[41,23,41,27],[42,23,42,27],[40,28,40,29],[40,30,40,31],[40,32,40,33],[41,28,41,29],[41,30,41,31],[41,32,41,33],[42,28,42,29],[42,13,42,21],[43,13,43,21],[44,13,44,21],[11,23,12,27],[14,23,15,27],[29,30,29,31],[29,32,29,33],[30,23,30,27],[30,28,30,29],[30,30,30,31],[30,32,30,33],[31,23,31,27],[35,32,35,33],[36,28,36,29],[36,30,36,31],[36,32,36,33],[37,28,37,29],[37,30,37,31],[37,32,37,33],[43,23,43,27],[44,23,44,27],[43,28,43,29],[43,30,43,31],[43,32,43,33],[46,23,46,27],[28,32,28,33],[28,30,28,31],[33,32,33,33],[33,30,33,31],[33,28,33,29],[34,28,34,29],[34,30,34,31],[34,32,34,33],[46,28,46,29],[46,30,46,31],[46,32,46,33],[45,23,45,27],[44,28,44,29],[44,30,44,31],[44,32,44,33],[45,28,45,29],[45,30,45,31],[45,32,45,33],[38,32,38,33],[39,28,39,29],[39,30,39,31],[39,32,39,33],[38,28,38,29]]}
[]
[null,null,null,null,null,null,null,null,"Zadejte označení výpočtu",null,null,null,null,"Situace (půdorys)",null,null,null,null,null,null,null,null,null,"Tabulka 1 - výňatek z normy ČSN 73 0532",null,null,null,null,null,null,null,null,null,null,null,"Vzduchová neprůzvučnost nehomogenní stavební konstrukce - výpočet"]
[null,null,null,null,null,null,null,null,null,null,null,null,null,"Strojovna ® dělící konstrukce ® tichá místnost",null,null,null,null,null,null,null,null,null,"Korekce na vedlejší cesty přenosu zvuku pro vzduchovou neprůzvučnost dělících konstrukcí",null,null,null,null,null,null,null,null,null,null,null,"Konstrukce",null,"Si*10exp(-0,1*Ri)",null,"Si*10exp(-0,1*Ci)",null,"Si*10exp(-0,1*Ctri)",null,"Scelk","Rcelk","Ccelk","Ctrcelk"]
[null,null,null,null,null,null,null,null,null,null,null,null,null,null,null,null,null,null,null,null,null,null,null,null,null,null,null,null,null,null,null,null,null,null,null,"Stěna",null,{"$f":"F28*10^(-0.1*C28)","v":1.1539999999999998E-5},null,{"$f":"F28*10^(-0.1*D28)","v":18.289667441001249},null,{"$f":"F28*10^(-0.1*E28)","v":45.941567481873591},null,"m2","dB","dB","dB"]
["Návrh neprůzvučných dveří GSD - jednočíselný výpočet",null,null,null,null,null,null,null,null,null,null,null,null,null,{"$f":"IF(M12>0,\"\",C14)","v":2},null,null,null,"Nehomogenní stavební konstrukce\nmezi strojovnou a tichou místností",null,null,null,null,"Dělící konstrukce (výpočtová)",null,null,null,null,"Boční konstrukce (navazující)",null,null,null,"Korekce k1 [dB]",null,null,"Dveře",null,{"$f":"F29*10^(-0.1*C29)","v":2.0000000000000002E-5},null,{"$f":"F29*10^(-0.1*D29)","v":3.1697863849222272},null,{"$f":"F29*10^(-0.1*E29)","v":7.9621434110699472},null,{"$f":"SUM(F28:F31)","v":14.999999999999998},{"$f":"ROUND(10*LOG10(AR5/AL8),0)","v":41},{"$f":"ROUND(10*LOG10(AR5/AN8),0)","v":-2},{"$f":"ROUND(10*LOG10(AR5/AP8),0)","v":-6}]
[null,null,null,null,null,null,null,null,null,null,null,null,null,null,"dB",null,null,null,null,null,null,null,null,"Těžká dělící stěna (strop)",null,null," Rw ≥ 40 dB",null,"4x těžká",null,null,null,2,null,null,"Okno",null,9.0857857605147708E-4,null,1.8128525929836008,null,2.8731777335551869]
["Zadejte název projektu",null,null,null,null,null,null,null,null,null,null,null,null,null,null,null,null,null,null,null,null,null,null,"monolitická, prefabrikovaná nebo zděná\n(cihly, beton, pórobeton apod.)",null,null,null,null,"3x těžká, 1x lehká",null,null,null,3,null,null,"Mezera",null,2.0000000000000001E-4,null,2.5178508235883346E-2,null,6.3245553203367597E-2]
["Zadejte název instalace",null,null,null,null,null,null,null,null,null,null,null,null,"Strojovna\n(hlučný prostor)",null,null,null,"Místnost\n(tíchý prostor)",null,null,null,null,null,null,null,null,null,null,"2x těžká, 2x lehká",null,null,null,4,null,null,"Suma",null,{"$f":"SUM(AL4:AM7)","v":1.1401185760514772E-3},null,{"$f":"SUM(AN4:AO7)","v":23.297484927142957},null,{"$f":"SUM(AP4:AQ7)","v":56.84013417970209}]
[null,null,null,null,null,null,null,null,null,null,null,"Zadejte žlutá pole, nebo vepište poznámky…",null,null,null,null,null,null,null,null,null,null,null,null,null,null,null,null,"1x těžká, 3x lehká",null,null,null,5]
["Hladina akustického tlaku ve strojovně a parametry prostoru",null,null,null,null,null,null,null,null,null,null,null,null,null,null,null,null,null,null,null,null,null,null,null,null,null,null,null,"vyzdívaný skelet",null,null,null,"≥ 4"]
["Zadejte průměrnou hladinu akustického tlaku ve strojovně (hlučné místnosti) a definujte základní parametry prostoru",null,null,null,null,null,null,null,null,null,null,null,null,"Lp1\n",{"$f":"IF(M12>0,\"\",C13)","v":100},null,null,null,{"$f":"K37","v":61},"Lp2",null,{"$f":"IF(M12>0,\"\",C15)","v":5},null,"Lehká dělící stěna (strop)",null,null," Rw ≤ 55 dB",null,"4x těžká",null,null,null,5]
[null,null,null,null,null,null,null,null,null,null,null,null,{"$f":"SUM(M13:M18)+SUM(M28:M31)","v":0},null,"dB",null,null,null,"dB",null,null,"m",null,"montovaná konstrukce z desek a nosného roštu\n(sádrokarton, dřevo apod.)",null,null,null,null,"3x těžká, 1x lehká",null,null,null,6]
["Lp1","dB",100,{"$f":"IF(M13=0,\"průměrná hladina akustického tlaku měřená ve strojovně (hlučný prostor)\",\"zadejte hodnotu v požadovaném rozsahu\")","v":"průměrná hladina akustického tlaku měřená ve strojovně (hlučný prostor)"},null,null,null,null,null,null,null,null,{"$f":"IF(OR(C13<20,C13>150),1,0)","v":0},"Rwcelk",{"$f":"IF(M12>0,\"\",CONCATENATE(AS5,\" (\",AT5,\";\",AU5,\")\",\"\"))","v":"41 (-2;-6)"},null,null,null,{"$f":"K39","v":65},null,null,{"$f":"IF(M12>0,\"\",C16)","v":3},null,null,null,null,null,null,"2x těžká, 2x lehká",null,null,null,8]
["k1","dB",2,{"$f":"IF(M14=0,\"korekce závislá na vedlejších cestách šíření zvuku přes stavební konstrukce (viz tabulka 1)\",\"zadejte hodnotu v požadovaném rozsahu\")","v":"korekce závislá na vedlejších cestách šíření zvuku přes stavební konstrukce (viz tabulka 1)"},null,null,null,null,null,null,null,null,{"$f":"IF(OR(C14<0,C14>20),1,0)","v":0},null,"dB",null,null,null,"dB",null,null,"m",null,"Lehká dělící stěna (strop)",null,null," Rw ≥ 55 dB",null,"4x těžká",null,null,null,6]
["a","m",5,{"$f":"IF(M15=0,\"šířka místnosti (šířka dělicí konstrukce)\",\"zadejte hodnotu v požadovaném rozsahu\")","v":"šířka místnosti (šířka dělicí konstrukce)"},null,null,null,null,null,null,null,null,{"$f":"IF(OR(C15<1,C15>200),1,0)","v":0},null,null,null,null,null,null,null,null,null,null,"montovaná konstrukce z desek a nosného roštu\n(sádrokarton, dřevo apod.)",null,null,null,null,"3x těžká, 1x lehká",null,null,null,7]
["b","m",3,{"$f":"IF(M16=0,\"výška místnosti (výška dělící konstrukce)\",\"zadejte hodnotu v požadovaném rozsahu\")","v":"výška místnosti (výška dělící konstrukce)"},null,null,null,null,null,null,null,null,{"$f":"IF(OR(C16<1,C16>200),1,0)","v":0},null,null,null,null,null,null,null,null,null,null,null,null,null,null,null,"2x těžká, 2x lehká",null,null,null,"≥ 8"]
["c","m",6,{"$f":"IF(M17=0,\"hloubka místnosti (nepoužívá se pro venkovní prostor)\",\"zadejte hodnotu v požadovaném rozsahu\")","v":"hloubka místnosti (nepoužívá se pro venkovní prostor)"},null,null,null,null,null,null,null,null,{"$f":"IF(OR(C17<1,C17>200),1,0)","v":0},null,null,null,null,null,null,null,null,null,null,"Za boční konstrukce se zde pokládají svislé a vodorovné stavební konstrukce obklopující dělicí stavební konstrukci\n(tj. boční stěny a stropní konstrukce včetně podlah). Např. označení \"4x těžká\" znamená, že dělící konstrukce navazuje\nna 4 konstrukce v masivním, těžkém provedení (tj. 2 stěny, strop a podlahu)."]
["am","-",0.2,{"$f":"IF(M18=0,\"střední činitel zvukové pohltivosti (nepoužívá se pro venkovní prostor)\",\"zadejte hodnotu v požadovaném rozsahu\")","v":"střední činitel zvukové pohltivosti (nepoužívá se pro venkovní prostor)"},null,null,null,null,null,null,null,null,{"$f":"IF(OR(C18<0.01,C18>1),1,0)","v":0}]
["S","m2",{"$f":"IF(M12=0,C15*C16,\"\")","v":15},"plocha dělicí konstrukce (a x b)",null,null,null,null,null,null,null,null,null,"Boční přenos hluku\npřes stavební konstrukce",null,null,null,null,{"$f":"IF(M12>0,\"\",C17)","v":6}]
["Sv","m2",{"$f":"IF(M12=0,2*(C15+C16)*C17+2*C15*C16,\"\")","v":126},"součet všech ploch ohraničujících místnost (tichý prostor)",null,null,null,null,null,null,null,null,null,null,null,null,null,null,"m",null,null,null,null,"Vedlejší cesty obecně závisí na množství okrajových podmínek, zejména ve styku konstrukcí a jejich různém dispozíčním řešení, které lze jen obtížně zobecnit. Pro složitější situace je nutné korekci stanovit individuálně. Hodnoty v tabulce 7 vycházejí z praktických zkušeností a z měření na stavbách. Za lehké konstrukce se zde pokládají pouze roštové konstrukce z desek, které obvykle mají hmotnost do 100 kg/m2. Přesnější, ale teoretické hodnoty odhadu vlivu vedlejších cest pro modelové situace podle tvaru styku, druhu a plošných hmotností dělícího prvku a bočních konstrukcí lze získat např. výpočtem podle přílohy E normy ČSN 73 0532 nebo podle ČSN EN ISO 12354-1 apod."]
["A2","m2",{"$f":"IF(M12=0,C20*C18,\"\")","v":25.200000000000003},"celková pohltivost v přijímací místnosti (am*Sv)"]
[]
["Vzduchová neprůzvučnost nehomogenní stavební konstrukce",null,null,null,null,null,null,null,null,null,null,null,null,"Strojovna ® dělící konstrukce ® venkovní prostor"]
["Zadejte parametry stavebních prvků dělící konstrukce mezi strojovnou a tichou místností (venkovním prostorem)"]
[null,null,null,null,null,null,null,null,null,null,null,null,null,null,{"$f":"IF(M12>0,\"\",C14)","v":2},null,null,null,"Nehomogenní stavební konstrukce\nmezi strojovnou a tichou místností"]
["Rwcelk = 10*log (S(Si)/S(Si*10(-0,1*Rwi)))",null,null,null,null,null,null,null,null,"=",{"$f":"IF(M12>0,\"\",CONCATENATE(AS5,\" (\",AT5,\";\",AU5,\")\",\" dB\"))","v":"41 (-2;-6) dB"},null,null,null,"dB",null,null,null,null,null,null,null,null,"Tabulka 2 - typické stavební konstrukce"]
["Konstrukce",null,"Rwi [dB]","C [dB]","Ctr [dB]","Si [m2]","neprůzvučnost / koeficienty přizpůsobení / plocha",null,null,null,null,null,null,null,null,null,null,null,null,null,null,null,null,"Vybrané stavební konstrukce a jejich faktory přizpůsobení spektru (orientační hodnoty)"]
["Stěna",null,60,-2,-6,{"$f":"(C15*C16)-SUM(F29:F31)","v":11.54},{"$f":"IF(M28=0,\"stěna mezi strojovnou a místností / venkovním prostorem\",\"zadejte hodnotu v požadovaném rozsahu\")","v":"stěna mezi strojovnou a místností / venkovním prostorem"},null,null,null,null,null,{"$f":"IF(F28<0,1,IF(OR(OR(C28<0,C28>80),OR(D28>0,D28<-25),OR(E28>0,E28<-25)),1,0))","v":0},"Strojovna\n(hlučný prostor)",null,null,null,"Venkovní prostor\n(tíchý prostor)"]
["Dveře",null,50,-2,-6,2,{"$f":"IF(M29=0,\"neprůzvučné dveře instalované v dělící konstrukci\",\"zadejte hodnotu v požadovaném rozsahu\")","v":"neprůzvučné dveře instalované v dělící konstrukci"},null,null,null,null,null,{"$f":"IF(C29=\"\",0,IF(OR(OR(C29<0,C29>80),OR(D29>0,D29<-25),OR(E29>0,E29<-25),OR(F29<0,F29>100)),1,0))","v":0},null,null,null,null,null,null,null,null,null,null,"Typ stavební konstrukce",null,null,null,null,"Rw [dB]",null,"C [dB]",null,"Ctr [dB]"]
["Okno",null,32,-1,-3,{"$f":"1.2*1.2","v":1.44},{"$f":"IF(M30=0,\"okno nebo jiný další prvek v dělící stěně\",\"zadejte hodnotu v požadovaném rozsahu\")","v":"okno nebo jiný další prvek v dělící stěně"},null,null,null,null,null,{"$f":"IF(C30=\"\",0,IF(OR(OR(C30<0,C30>80),OR(D30>0,D30<-25),OR(E30>0,E30<-25),OR(F30<0,F30>100)),1,0))","v":0},null,null,null,null,null,null,null,null,null,null,"Dveře GREIF GSD 1 (jednokřídlé)",null,null,null,null,50,null,-2,null,-6]
["Mezera",null,20,-1,-5,0.02,{"$f":"IF(M31=0,\"netěsnost mezi dělící a boční konstrukcí\",\"zadejte hodnotu v požadovaném rozsahu\")","v":"netěsnost mezi dělící a boční konstrukcí"},null,null,null,null,null,{"$f":"IF(C31=\"\",0,IF(OR(OR(C31<0,C31>80),OR(D31>0,D31<-25),OR(E31>0,E31<-25),OR(F31<0,F31>100)),1,0))","v":0},"Lp1\n",{"$f":"IF(M12>0,\"\",C13)","v":100},null,null,null,{"$f":"K45","v":57},"Lp2",null,{"$f":"IF(M12>0,\"\",C15)","v":5},null,"Dveře GRIEF GSD 2 (dvoukřídlé)",null,null,null,null,46,null,-1,null,-4]
[null,null,null,null,null,null,null,null,null,null,null,null,null,null,"dB",null,null,null,"dB",null,null,"m",null,"Železobetonová stěna 200 mm, 2400 kg/m3",null,null,null,null,57,null,-1,null,-6]
["Hladina akustického tlaku šířeného ze strojovny do sousední místnosti",null,null,null,null,null,null,null,null,null,null,null,null,"Rwcelk",{"$f":"IF(M12>0,\"\",CONCATENATE(AS5,\" (\",AT5,\";\",AU5,\")\",\"\"))","v":"41 (-2;-6)"},null,null,null,{"$f":"K47","v":61},null,null,{"$f":"IF(M12>0,\"\",C16)","v":3},null,"Železobetonová stěna 250 mm, 2400 kg/m3",null,null,null,null,60,null,-2,null,-6]
["Očekávaná hladina akustického tlaku šířená ze strojovny do sousední místnosti, vypočtená dle frekvenčního spektra zdroje…",null,null,null,null,null,null,null,null,null,null,null,null,null,"dB",null,null,null,"dB",null,null,"m",null,"Plná cihla 140 mm, 1900 kg/m3",null,null,null,null,48,null,-1,null,-4]
[null,null,null,null,null,null,null,null,null,null,null,null,null,null,null,null,null,null,null,null,null,null,null,"Porotherm 11,5 AKU",null,null,null,null,47,null,-2,null,-5]
["Pro zdroje hluku jako jsou malé a středně velké ventilátory, hluk generovaný při proudění plynů a par, hluk trafostanic apod.",null,null,null,null,null,null,null,null,null,null,null,null,null,null,null,null,null,null,null,null,null,null,"Porotherm 19 AKU",null,null,null,null,54,null,-2,null,-6]
["Lp2 = Lp1 - ((Rwcelk + C - k1) + 10*log (A2/S))",null,null,null,null,null,null,null,null,"=",{"$f":"IF(M12>0,\"\",ROUND(C13-((AS5+AT5-C14)+10*LOG10(C21/C19)),0))","v":61},null,null,null,null,null,null,null,null,null,null,null,null,"YTONG 150 mm, 500 kg/m3",null,null,null,null,41,null,-1,null,-3]
["Pro zdroje hluku jako jsou kompresory, turbíny, dieselagregáty, velké ventilátory, hluk z dopravy, apod.",null,null,null,null,null,null,null,null,null,null,null,null,null,null,null,null,null,null,null,null,null,null,"LIAPOR M 175, 1300 kg/m3",null,null,null,null,55,null,-1,null,-5]
["Lp2 = Lp1 - ((Rwcelk + Ctr - k1) + 10*log (A2/S))",null,null,null,null,null,null,null,null,"=",{"$f":"IF(M12>0,\"\",ROUND(C13-((AS5+AU5-C14)+10*LOG10(C21/C19)),0))","v":65},null,null,"Boční přenos hluku\npřes stavební konstrukce",null,null,null,null,null,null,null,null,null,"SDK W112 tl. 100 mm (opláštění 2x12,5 mm)",null,null,null,null,51,null,-3,null,-9]
[null,null,null,null,null,null,null,null,null,null,null,null,null,null,null,null,null,null,null,null,null,null,null,"SDK W115 tl. 155 mm (opláštění 2x12,5 mm)",null,null,null,null,62,null,-3,null,-9]
["Hladina akustického tlaku šířeného ze strojovny do venkovního prostoru",null,null,null,null,null,null,null,null,null,null,null,null,null,null,null,null,null,null,null,null,null,null,"Okno standardní",null,null,null,null,32,null,-1,null,-3]
["Očekávaná hladina akustického tlaku šířená ze strojovny do venkovního prostoru, vypočtená dle frekvenčního spektra zdroje…",null,null,null,null,null,null,null,null,null,null,null,null,null,null,null,null,null,null,null,null,null,null,"Okno zesílené",null,null,null,null,37,null,-1,null,-4]
[null,null,null,null,null,null,null,null,null,null,null,null,null,"Komentovaný závěr výpočtu:",null,null,null,null,null,null,null,null,null,"Okno zvukoizolační",null,null,null,null,40,null,-2,null,-6]
[{"$f":"A36","v":"Pro zdroje hluku jako jsou malé a středně velké ventilátory, hluk generovaný při proudění plynů a par, hluk trafostanic apod."},null,null,null,null,null,null,null,null,null,null,null,null,"Hladina akustického tlaku Lp2 šířená ze strojovny přes stavební konstrukci,",null,null,null,null,null,null,null,null,null,"Dveře dřevěné (s prahem)",null,null,null,null,27,null,-1,null,-4]
["Lp2 = Lp1 - (Rwcelk + C - k1) - 6",null,null,null,null,null,null,"=",null,"=",{"$f":"IF(M12>0,\"\",ROUND(C13-(AS5+AT5-C14)-6,1))","v":57},null,null,"bude dle typu frekvenčního spektra zdroje hluku ležet v pásmu:",null,null,null,null,null,null,null,null,null,"Dveře plechové (jednoplášťové s prahem)",null,null,null,null,30,null,-2,null,-5]
[{"$f":"A38","v":"Pro zdroje hluku jako jsou kompresory, turbíny, dieselagregáty, velké ventilátory, hluk z dopravy, apod."},null,null,null,null,null,null,null,null,null,null,null,null,{"$f":"IF(M12>0,\"\",CONCATENATE(S11,\" až \",S13,\" dB\"))","v":"61 až 65 dB"},null," - pro hluk šířený ze strojovny do uzavřené sousední místnosti, nebo",null,null,null,null,null,null,null,"Dveře plechové (dvouplášťové s prahem)",null,null,null,null,39,null,-3,null,-6]
["Lp2 = Lp1 - (Rwcelk + Ctr - k1) - 6",null,null,null,null,null,null,"=",null,"=",{"$f":"IF(M12>0,\"\",ROUND(C13-(AS5+AU5-C14)-6,1))","v":61},null,null,{"$f":"IF(M12>0,\"\",CONCATENATE(S31,\" až \",S33,\" dB\"))","v":"57 až 61 dB"},null," - pro hluk šířený ze strojovny do venkovního prostoru",null,null,null,null,null,null,null,"Kingspan FR 120 mm",null,null,null,null,32,null,-1,null,-3]

{"sheet":"NEP-02","index":2,"n_rows":47,"n_cols":47,"rows_kept":47,"cut":false,"hidden":false,"merged":[[1,8,2,11],[10,0,10,11],[1,35,1,45],[2,35,2,45],[8,35,8,39],[24,18,25,21],[1,23,1,33],[2,23,2,33],[4,23,4,27],[4,28,4,31],[4,32,4,33],[10,23,10,25],[10,26,10,27],[10,28,10,31],[10,32,10,33],[11,23,12,27],[11,28,11,31],[11,32,11,33],[18,13,19,15],[21,0,21,10],[17,3,17,11],[15,3,15,11],[12,3,12,11],[13,3,13,11],[14,3,14,11],[16,3,16,11],[46,13,46,14],[45,13,45,14],[44,13,44,21],[27,13,28,15],[27,17,28,19],[38,13,39,15],[43,13,43,21],[42,13,42,21],[43,0,43,11],[18,0,18,11],[23,0,23,11],[26,0,26,11],[36,0,36,11],[42,0,42,11],[27,0,27,11],[37,0,37,11],[4,0,5,11],[4,18,5,21],[6,0,6,11],[7,0,7,11],[5,23,5,25],[5,26,5,27],[5,28,5,31],[5,32,5,33],[6,23,9,27],[6,28,6,31],[6,32,6,33],[7,28,7,31],[7,32,7,33],[8,28,8,31],[8,32,8,33],[9,28,9,31],[9,32,9,33],[9,0,9,11],[7,13,8,15],[7,17,8,19],[12,28,12,31],[12,32,12,33],[45,23,45,33],[31,23,32,23],[31,24,32,24],[34,23,35,23],[34,24,35,24],[37,23,38,23],[37,24,38,24],[40,23,41,23],[40,24,41,24],[43,23,44,23],[43,24,44,24],[36,23,36,33],[42,23,42,33],[39,23,39,33],[33,23,33,33],[13,35,13,39],[4,35,4,39],[22,35,22,39],[27,35,27,39],[10,13,11,13],[12,13,13,13],[30,13,31,13],[32,13,33,13],[31,19,32,19],[11,19,12,19],[30,23,30,33],[28,23,28,33],[16,23,18,33],[19,23,23,33],[25,23,25,33],[13,23,13,25],[13,26,13,27],[13,28,13,31],[13,32,13,33],[14,23,15,27],[14,28,14,31],[14,32,14,33],[15,28,15,31],[15,32,15,33]]}
[]
[null,null,null,null,null,null,null,null,"Zadejte označení výpočtu",null,null,null,null,"Situace (půdorys)",null,null,null,null,null,null,null,null,null,"Tabulka 1 - výňatek z normy ČSN 73 0532",null,null,null,null,null,null,null,null,null,null,null,"Výpočet"]
[null,null,null,null,null,null,null,null,null,null,null,null,null,"Strojovna ® dělící konstrukce ® tichá místnost",null,null,null,null,null,null,null,null,null,"Korekce na vedlejší cesty přenosu zvuku pro vzduchovou neprůzvučnost dělících konstrukcí",null,null,null,null,null,null,null,null,null,null,null,"Stanovení celkových hladin hluku, neprůzvučností apod."]
[]
["Návrh neprůzvučných dveří GSD - frekvenční výpočet",null,null,null,null,null,null,null,null,null,null,null,null,null,{"$f":"IF($M$12>0,\"\",C16)","v":2},null,null,null,"Nehomogenní stavební konstrukce\nmezi strojovnou a tichou místností",null,null,null,null,"Dělící konstrukce (výpočtová)",null,null,null,null,"Boční konstrukce (navazující)",null,null,null,"Korekce k1 [dB]",null,null,"Korekční křivka"]
[null,null,null,null,null,null,null,null,null,null,null,null,null,null,"dB",null,null,null,null,null,null,null,null,"Těžká dělící stěna (strop)",null,null," Rw ≥ 40 dB",null,"4x těžká",null,null,null,2,null,null,"f","Hz",31.5,63,125,250,500,1000,2000,4000,8000]
["Zadejte název projektu",null,null,null,null,null,null,null,null,null,null,null,null,null,null,null,null,null,null,null,null,null,null,"monolitická, prefabrikovaná nebo zděná\n(cihly, beton, pórobeton apod.)",null,null,null,null,"3x těžká, 1x lehká",null,null,null,3,null,null,"A","dB",-39.4,-26.2,-16.100000000000001,-8.6,-3.2,0,1.2,1,-1.1000000000000001]
["Zadejte název instalace",null,null,null,null,null,null,null,null,null,null,null,null,"Strojovna\n(hlučný prostor)",null,null,null,"Místnost\n(tíchý prostor)",null,null,null,null,null,null,null,null,null,null,"2x těžká, 2x lehká",null,null,null,4]
[null,null,null,null,null,null,null,null,null,null,null,"Zadejte žlutá pole, nebo vepište poznámky…",null,null,null,null,null,null,null,null,null,null,null,null,null,null,null,null,"1x těžká, 3x lehká",null,null,null,5,null,null,"Hladina akustického tlaku ve strojovně"]
["Hladina akustického tlaku ve strojovně a parametry prostoru",null,null,null,null,null,null,null,null,null,null,null,null,null,null,null,null,null,null,null,null,null,null,null,null,null,null,null,"vyzdívaný skelet",null,null,null,"≥ 4",null,null,"f","Hz",31.5,63,125,250,500,1000,2000,4000,8000,"SUMA"]
["Zadejte průměrnou hladinu akustického tlaku ve strojovně (hlučné místnosti) a definujte základní parametry prostoru",null,null,null,null,null,null,null,null,null,null,null,null,"Lp1\n",{"$f":"IF($M$12>0,\"\",L21)","v":100.02602706316019},null,null,null,null,null,null,{"$f":"IF($M$12>0,\"\",C13)","v":6},null,"Lehká dělící stěna (strop)",null,null," Rw ≤ 55 dB",null,"4x těžká",null,null,null,5,null,null,"Lp1-LIN","dB",{"$f":"C21","v":87},96,103,104,99,93,83,74,63,{"$f":"IF(10*LOG10((10^(AL11/10))+(10^(AM11/10))+(10^(AN11/10))+(10^(AO11/10))+(10^(AP11/10))+(10^(AQ11/10))+(10^(AR11/10))+(10^(AS11/10))+(10^(AT11/10)))<20,\"<20\",10*LOG10((10^(AL11/10))+(10^(AM11/10))+(10^(AN11/10))+(10^(AO11/10))+(10^(AP11/10))+(10^(AQ11/10))+(10^(AR11/10))+(10^(AS11/10))+(10^(AT11/10))))","v":107.76112028110454}]
[null,null,null,null,null,null,null,null,null,null,null,null,{"$f":"SUM(M13:M16)+M21+M23+SUM(M31:M34)","v":0},null,"dB",null,null,null,{"$f":"IF($M$12>0,\"\",L41)","v":67.44354998338126},"Lp2",null,"m",null,"montovaná konstrukce z desek a nosného roštu\n(sádrokarton, dřevo apod.)",null,null,null,null,"3x těžká, 1x lehká",null,null,null,6,null,null,"Lp1-A","dB",{"$f":"IF((AL11+AL7)<0,0,AL11+AL7)","v":47.6},{"$f":"IF((AM11+AM7)<0,0,AM11+AM7)","v":69.8},86.9,95.4,95.8,93,84.2,75,61.9,{"$f":"IF(10*LOG10((10^(AL12/10))+(10^(AM12/10))+(10^(AN12/10))+(10^(AO12/10))+(10^(AP12/10))+(10^(AQ12/10))+(10^(AR12/10))+(10^(AS12/10))+(10^(AT12/10)))<20,\"<20\",10*LOG10((10^(AL12/10))+(10^(AM12/10))+(10^(AN12/10))+(10^(AO12/10))+(10^(AP12/10))+(10^(AQ12/10))+(10^(AR12/10))+(10^(AS12/10))+(10^(AT12/10))))","v":100.02602706316019}]
["a","m",6,{"$f":"IF(M13=0,\"šířka místnosti (šířka dělicí konstrukce)\",\"zadejte hodnotu v požadovaném rozsahu\")","v":"šířka místnosti (šířka dělicí konstrukce)"},null,null,null,null,null,null,null,null,{"$f":"IF(OR(C13<0,C13>200),1,0)","v":0},"Rw500Hz",{"$f":"IF($M$12>0,\"\",G35)","v":34},null,null,null,"dB",null,null,{"$f":"IF($M$12>0,\"\",C14)","v":3},null,null,null,null,null,null,"2x těžká, 2x lehká",null,null,null,8]
["b","m",3,{"$f":"IF(M14=0,\"výška místnosti (výška dělící konstrukce)\",\"zadejte hodnotu v požadovaném rozsahu\")","v":"výška místnosti (výška dělící konstrukce)"},null,null,null,null,null,null,null,null,{"$f":"IF(OR(C14<0,C14>200),1,0)","v":0},null,"dB",null,null,null,null,null,null,"m",null,"Lehká dělící stěna (strop)",null,null," Rw ≥ 55 dB",null,"4x těžká",null,null,null,6,null,null,"Nehomogenní konstrukce - Si*10exp(-0,1*Ri)"]
["c","m",5,{"$f":"IF(M15=0,\"hloubka místnosti (nepoužívá se pro venkovní prostor)\",\"zadejte hodnotu v požadovaném rozsahu\")","v":"hloubka místnosti (nepoužívá se pro venkovní prostor)"},null,null,null,null,null,null,null,null,{"$f":"IF(OR(C15<1,C15>200),1,0)","v":0},null,null,null,null,null,null,null,null,null,null,"montovaná konstrukce z desek a nosného roštu\n(sádrokarton, dřevo apod.)",null,null,null,null,"3x těžká, 1x lehká",null,null,null,7,null,null,"f","Hz",31.5,63,125,250,500,1000,2000,4000,8000,"SUMA"]
["k1","dB",2,{"$f":"IF(M16=0,\"korekce závislá na vedlejších cestách šíření zvuku přes stavební konstrukce (viz tabulka 1)\",\"zadejte hodnotu v požadovaném rozsahu\")","v":"korekce závislá na vedlejších cestách šíření zvuku přes stavební konstrukce (viz tabulka 1)"},null,null,null,null,null,null,null,null,{"$f":"IF(OR(C16<0,C16>20),1,0)","v":0},null,null,null,null,null,null,null,null,null,null,null,null,null,null,null,"2x těžká, 2x lehká",null,null,null,"≥ 8",null,null,{"$f":"A31","v":"Stěna"},"dB",{"$f":"$L$31*10^(-0.1*C31)","v":2.9430119145790919E-3},{"$f":"$L$31*10^(-0.1*D31)","v":7.3925116960022678E-4},5.8720807656640706E-4,4.664359548748353E-4,7.3925116960022458E-5,1.4749999999999999E-5,4.664359548748351E-6,4.664359548748351E-6,4.664359548748351E-6,"-"]
["S","m2",{"$f":"IF($M$12>0,\"\",C13*C14)","v":18},"plocha dělicí konstrukce (a x b)",null,null,null,null,null,null,null,null,null,null,null,null,null,null,null,null,null,null,null,"Za boční konstrukce se zde pokládají svislé a vodorovné stavební konstrukce obklopující dělicí stavební konstrukci\n(tj. boční stěny a stropní konstrukce včetně podlah). Např. označení \"4x těžká\" znamená, že dělící konstrukce navazuje\nna 4 konstrukce v masivním, těžkém provedení (tj. 2 stěny, strop a podlahu).",null,null,null,null,null,null,null,null,null,null,null,{"$f":"A32","v":"Dveře"},"dB",{"$f":"$L$32*10^(-0.1*C32)","v":6.3245553203367527E-3},{"$f":"$L$32*10^(-0.1*D32)","v":2.5178508235883302E-3},2.5178508235883295E-4,2.5178508235883295E-4,6.3245553203367496E-5,1.2619146889603842E-5,3.9905246299377498E-6,6.3245553203367533E-6,6.3245553203367533E-6,"-"]
["Sv","m2",{"$f":"IF($M$12>0,\"\",2*(C13+C14)*C15+2*C13*C14)","v":126},"součet všech ploch ohraničujících místnost (tichý prostor)",null,null,null,null,null,null,null,null,null,null,null,null,null,null,null,null,null,null,null,null,null,null,null,null,null,null,null,null,null,null,null,{"$f":"A33","v":"Okno"},"dB",{"$f":"$L$33*10^(-0.1*C33)","v":3.7947331922020537E-2},{"$f":"$L$33*10^(-0.1*D33)","v":9.5319388166913745E-3},1.5107104941529996E-2,4.7772860466419615E-3,1.510710494152998E-3,3.7947331922020516E-6,3.7947331922020481E-7,3.7947331922020481E-7,3.7947331922020481E-7,"-"]
["Zadejte průměrnou hladinu akustického tlaku ve strojovně (hlučném prostoru) ve frekvenčním spektru",null,null,null,null,null,null,null,null,null,null,null,null,"Boční přenos hluku\npřes stavební konstrukce",null,null,null,null,{"$f":"IF($M$12>0,\"\",C15)","v":5},null,null,null,null,null,null,null,null,null,null,null,null,null,null,null,null,{"$f":"A34","v":"Mezera"},"dB",{"$f":"$L$34*10^(-0.1*C34)","v":5.000000000000001E-3},{"$f":"$L$34*10^(-0.1*D34)","v":5.000000000000001E-3},5.000000000000001E-3,5.000000000000001E-3,5.000000000000001E-3,5.000000000000001E-3,5.000000000000001E-3,5.000000000000001E-3,5.000000000000001E-3,"-"]
["f","Hz",31.5,63,125,250,500,1000,2000,4000,8000,"dB(A)",null,null,null,null,null,null,"m",null,null,null,null,"Vedlejší cesty obecně závisí na množství okrajových podmínek, zejména ve styku konstrukcí a jejich různém dispozíčním řešení, které lze jen obtížně zobecnit. Pro složitější situace je nutné korekci stanovit individuálně. Hodnoty v tabulce 7 vycházejí z praktických zkušeností a z měření na stavbách. Za lehké konstrukce se zde pokládají pouze roštové konstrukce z desek, které obvykle mají hmotnost do 100 kg/m2. Přesnější, ale teoretické hodnoty odhadu vlivu vedlejších cest pro modelové situace podle tvaru styku, druhu a plošných hmotností dělícího prvku a bočních konstrukcí lze získat např. výpočtem podle přílohy E normy ČSN 73 0532 nebo podle ČSN EN ISO 12354-1 apod.",null,null,null,null,null,null,null,null,null,null,null,"Suma","dB",{"$f":"SUM(AL16:AL19)","v":5.221489915693639E-2},{"$f":"SUM(AM16:AM19)","v":1.7789040809879933E-2},2.0946098100455238E-2,1.049550708387563E-2,6.6478811643163891E-3,5.0311638800818069E-3,5.009034357497907E-3,5.0113683881883066E-3,5.0113683881883066E-3,"-"]
["Lp1-LIN","dB",87,96,103,104,99,93,83,74,63,{"$f":"AU12","v":100.02602706316019},{"$f":"IF(OR(C21<1,C21>150),1,IF(OR(D21<1,D21>150),1,IF(OR(E21<1,E21>150),1,IF(OR(F21<1,F21>150),1,IF(OR(G21<1,G21>150),1,IF(OR(H21<1,H21>150),1,IF(OR(I21<1,I21>150),1,IF(OR(J21<1,J21>150),1,IF(OR(K21<1,K21>150),1,0)))))))))","v":0},null,null,null,null,null,null,null,null,null,null,null,null,null,null,null,null,null,null,null,null,null,null,"Celkem","dB",{"$f":"ROUND(10*LOG10($L$35/AL20),0)","v":25},{"$f":"ROUND(10*LOG10($L$35/AM20),0)","v":30},29,32,34,36,36,36,36,"-"]
["Zadejte součinitel vzduchové pohltivosti v jednotlivých frekvenčních pásmech",null,null,null,null,null,null,null,null,null,null,"aS"]
["am","-",0.2,0.2,0.2,0.2,0.2,0.2,0.2,0.2,0.2,{"$f":"(G23+H23)/2","v":0.2},{"$f":"IF(OR(C23<0.01,C23>1),1,IF(OR(D23<0.01,D23>1),1,IF(OR(E23<0.01,E23>1),1,IF(OR(F23<0.01,F23>1),1,IF(OR(G23<0.01,G23>1),1,IF(OR(H23<0.01,H23>1),1,IF(OR(I23<0.01,I23>1),1,IF(OR(J23<0.01,J23>1),1,IF(OR(K23<0.01,K23>1),1,0)))))))))","v":0},"Strojovna ® dělící konstrukce ® venkovní prostor",null,null,null,null,null,null,null,null,null,null,null,null,null,null,null,null,null,null,null,null,null,"Hladina hluku v místnosti"]
["Celková pohltivost v přijímací místnosti v jednotlivých frekvenčních pásmech",null,null,null,null,null,null,null,null,null,null,null,null,null,null,null,null,null,null,null,null,null,null,null,null,null,null,null,null,null,null,null,null,null,null,"f","Hz",31.5,63,125,250,500,1000,2000,4000,8000,"SUMA"]
["A2","m2",{"$f":"IF($M$12>0,\"\",$C$18*C23)","v":25.200000000000003},{"$f":"IF($M$12>0,\"\",$C$18*D23)","v":25.200000000000003},25.200000000000003,25.200000000000003,25.200000000000003,25.200000000000003,25.200000000000003,25.200000000000003,25.200000000000003,{"$f":"IF($M$12>0,\"\",L23*$C$18)","v":25.200000000000003},null,null,{"$f":"IF($M$12>0,\"\",C16)","v":2},null,null,null,"Nehomogenní stavební konstrukce\nmezi strojovnou a tichou místností",null,null,null,null,null,null,null,null,null,null,null,null,null,null,null,null,"Lp2-LIN","dB",{"$f":"C41","v":62.538719643217618},{"$f":"D41","v":66.538719643217618},74.538719643217618,72.538719643217618,65.538719643217618,57.538719643217618,47.538719643217618,38.538719643217618,27.538719643217618,{"$f":"IF(10*LOG10((10^(AL25/10))+(10^(AM25/10))+(10^(AN25/10))+(10^(AO25/10))+(10^(AP25/10))+(10^(AQ25/10))+(10^(AR25/10))+(10^(AS25/10))+(10^(AT25/10)))<20,\"<20\",10*LOG10((10^(AL25/10))+(10^(AM25/10))+(10^(AN25/10))+(10^(AO25/10))+(10^(AP25/10))+(10^(AQ25/10))+(10^(AR25/10))+(10^(AS25/10))+(10^(AT25/10))))","v":77.550439437048425}]
[null,null,null,null,null,null,null,null,null,null,null,null,null,null,"dB",null,null,null,null,null,null,null,null,"Tabulka 2 - typické stavební konstrukce",null,null,null,null,null,null,null,null,null,null,null,"Lp2-A","dB",{"$f":"IF((AL25+AL7)<0,0,AL25+AL7)","v":23.13871964321762},{"$f":"IF((AM25+AM7)<0,0,AM25+AM7)","v":40.338719643217615},58.438719643217617,63.938719643217617,62.338719643217615,57.538719643217618,48.738719643217621,39.538719643217618,26.438719643217617,{"$f":"IF(10*LOG10((10^(AL26/10))+(10^(AM26/10))+(10^(AN26/10))+(10^(AO26/10))+(10^(AP26/10))+(10^(AQ26/10))+(10^(AR26/10))+(10^(AS26/10))+(10^(AT26/10)))<20,\"<20\",10*LOG10((10^(AL26/10))+(10^(AM26/10))+(10^(AN26/10))+(10^(AO26/10))+(10^(AP26/10))+(10^(AQ26/10))+(10^(AR26/10))+(10^(AS26/10))+(10^(AT26/10))))","v":67.44354998338126}]
["Vzduchová neprůzvučnost nehomogenní stavební konstrukce",null,null,null,null,null,null,null,null,null,null,null,null,null,null,null,null,null,null,null,null,null,null,"Vybrané stavební konstrukce a jejich frekvenční průběh vzduchové neprůzvučnosti"]
["Zadejte vzduchovou neprůzvučnost stavebních prvků dělící konstrukce mezi strojovnou a místností (venkovním prostorem)",null,null,null,null,null,null,null,null,null,null,null,null,"Strojovna\n(hlučný prostor)",null,null,null,"Venkovní prostor\n(tíchý prostor)",null,null,null,null,null,null,null,null,null,null,null,null,null,null,null,null,null,"Hladina hluku ve venkovním prostoru"]
[null,null,null,null,null,null,null,null,null,null,null,null,null,null,null,null,null,null,null,null,null,null,null,"Typ stavební konstrukce",null,null,null,null,null,null,null,null,null,null,null,"f","Hz",31.5,63,125,250,500,1000,2000,4000,8000,"SUMA"]
["f","Hz",31.5,63,125,250,500,1000,2000,4000,8000,"S [m2]",null,null,null,null,null,null,null,null,null,null,null,"f","Hz",31.5,63,125,250,500,1000,2000,4000,8000,null,"Lp2-LIN","dB",{"$f":"C47","v":58},{"$f":"D47","v":62},70,68,61,53,43,34,23,{"$f":"IF(10*LOG10((10^(AL30/10))+(10^(AM30/10))+(10^(AN30/10))+(10^(AO30/10))+(10^(AP30/10))+(10^(AQ30/10))+(10^(AR30/10))+(10^(AS30/10))+(10^(AT30/10)))<20,\"<20\",10*LOG10((10^(AL30/10))+(10^(AM30/10))+(10^(AN30/10))+(10^(AO30/10))+(10^(AP30/10))+(10^(AQ30/10))+(10^(AR30/10))+(10^(AS30/10))+(10^(AT30/10))))","v":73.011719793830807}]
["Stěna","dB",37,43,44,45,53,60,65,65,65,{"$f":"(C13*C14)-SUM(L32:L34)","v":14.75},{"$f":"IF(OR(C31<0,C31>100),1,IF(OR(D31<0,D31>100),1,IF(OR(E31<0,E31>100),1,IF(OR(F31<0,F31>100),1,IF(OR(G31<0,G31>100),1,IF(OR(H31<0,H31>100),1,IF(OR(I31<0,I31>100),1,IF(OR(J31<0,J31>100),1,IF(OR(K31<0,K31>100),1,0)))))))))","v":0},"Lp1\n",{"$f":"IF($M$12>0,\"\",L21)","v":100.02602706316019},null,null,null,null,null,null,{"$f":"IF($M$12>0,\"\",C13)","v":6},null,"Dveře Greif GSD 1 (jednokřídlé) / dveře GREIF GSD 2 (dvoukřídlé)",null,null,null,null,null,null,null,null,null,null,null,"Lp2-A","dB",{"$f":"IF((AL30+AL7)<0,0,AL30+AL7)","v":18.600000000000001},{"$f":"IF((AM30+AM7)<0,0,AM30+AM7)","v":35.799999999999997},53.9,59.4,57.8,53,44.2,35,21.9,{"$f":"IF(10*LOG10((10^(AL31/10))+(10^(AM31/10))+(10^(AN31/10))+(10^(AO31/10))+(10^(AP31/10))+(10^(AQ31/10))+(10^(AR31/10))+(10^(AS31/10))+(10^(AT31/10)))<20,\"<20\",10*LOG10((10^(AL31/10))+(10^(AM31/10))+(10^(AN31/10))+(10^(AO31/10))+(10^(AP31/10))+(10^(AQ31/10))+(10^(AR31/10))+(10^(AS31/10))+(10^(AT31/10))))","v":62.904830340163628}]
["Dveře","dB",25,29,39,39,45,52,57,55,55,2,{"$f":"IF(OR(C32<0,C32>100),1,IF(OR(D32<0,D32>100),1,IF(OR(E32<0,E32>100),1,IF(OR(F32<0,F32>100),1,IF(OR(G32<0,G32>100),1,IF(OR(H32<0,H32>100),1,IF(OR(I32<0,I32>100),1,IF(OR(J32<0,J32>100),1,IF(OR(K32<0,K32>100),1,0)))))))))+IF(OR(L32<0,$L$31<0),1,0)","v":0},null,"dB",null,null,null,{"$f":"IF($M$12>0,\"\",L47)","v":62.904830340163628},"Lp2",null,"m",null,"Rw","dB",25,29,39,39,45,52,57,55,55]
["Okno","dB",15,21,19,24,29,55,65,65,65,1.2,{"$f":"IF(OR(C33<0,C33>100),1,IF(OR(D33<0,D33>100),1,IF(OR(E33<0,E33>100),1,IF(OR(F33<0,F33>100),1,IF(OR(G33<0,G33>100),1,IF(OR(H33<0,H33>100),1,IF(OR(I33<0,I33>100),1,IF(OR(J33<0,J33>100),1,IF(OR(K33<0,K33>100),1,0)))))))))+IF(OR(L33<0,$L$31<0),1,0)","v":0},"Rw500Hz",{"$f":"IF($M$12>0,\"\",G35)","v":34},null,null,null,"dB",null,null,{"$f":"IF($M$12>0,\"\",C14)","v":3},null,null,null,25,32,36,38,43,47,50,51,51]
["Mezera","dB",10,10,10,10,10,10,10,10,10,0.05,{"$f":"IF(OR(C34<0,C34>100),1,IF(OR(D34<0,D34>100),1,IF(OR(E34<0,E34>100),1,IF(OR(F34<0,F34>100),1,IF(OR(G34<0,G34>100),1,IF(OR(H34<0,H34>100),1,IF(OR(I34<0,I34>100),1,IF(OR(J34<0,J34>100),1,IF(OR(K34<0,K34>100),1,0)))))))))+IF(OR(L34<0,$L$31<0),1,0)","v":0},null,"dB",null,null,null,null,null,null,"m",null,"Železobetonová stěna (2400 kg/m3) o tloušťce 200 mm / 250 mm"]
["Celkem","dB",{"$f":"IF($M$12>0,\"\",AL21)","v":25},{"$f":"IF($M$12>0,\"\",AM21)","v":30},29,32,34,36,36,36,36,{"$f":"C17","v":18},null,null,null,null,null,null,null,null,null,null,null,"Rw","dB",37,43,44,45,53,60,65,65,65]
[null,null,null,null,null,null,null,null,null,null,null,null,null,null,null,null,null,null,null,null,null,null,null,null,null,39,45,45,48,56,63,65,65,65]
["Hladina akustického tlaku šířeného ze strojovny do sousední místnosti",null,null,null,null,null,null,null,null,null,null,null,null,null,null,null,null,null,null,null,null,null,null,"Stěna z cihel Porotherm 11,5 AKU / 19 AKU"]
["Očekávaná hladina akustického tlaku šířená ze strojovny do sousední místnosti, vypočtená dle frekvenčního spektra zdroje…",null,null,null,null,null,null,null,null,null,null,null,null,null,null,null,null,null,null,null,null,null,null,"Rw","dB",32,38,41,39,41,49,55,60,60]
[null,null,null,null,null,null,null,null,null,null,null,null,null,"Boční přenos hluku\npřes stavební konstrukce",null,null,null,null,null,null,null,null,null,null,null,36,42,43,42,49,56,61,65,65]
["f","Hz",31.5,63,125,250,500,1000,2000,4000,8000,"dB(A)",null,null,null,null,null,null,null,null,null,null,null,"SDK W112 tl. 100 mm (opláštění 2x12,5 mm) / SDK W115 tl. 155 mm (opláštění 2x12,5 mm)"]
["Lp2-LIN","dB",{"$f":"IF($M$12>0,\"\",IF((C21-((C35-$C$16)+10*LOG10(C25/$C$17)))<0,0,C21-((C35-$C$16)+10*LOG10(C25/$C$17))))","v":62.538719643217618},{"$f":"IF($M$12>0,\"\",IF((D21-((D35-$C$16)+10*LOG10(D25/$C$17)))<0,0,D21-((D35-$C$16)+10*LOG10(D25/$C$17))))","v":66.538719643217618},74.538719643217618,72.538719643217618,65.538719643217618,57.538719643217618,47.538719643217618,38.538719643217618,27.538719643217618,{"$f":"IF($M$12>0,\"\",AU26)","v":67.44354998338126},null,null,null,null,null,null,null,null,null,null,null,"Rw","dB",13,19,29,46,58,65,65,60,55]
[null,null,null,null,null,null,null,null,null,null,null,null,null,null,null,null,null,null,null,null,null,null,null,null,null,13,19,39,54,65,65,65,65,65]
["Hladina akustického tlaku šířeného ze strojovny do venkovního prostoru",null,null,null,null,null,null,null,null,null,null,null,null,"Komentovaný závěr výpočtu:",null,null,null,null,null,null,null,null,null,"Okno standardní / zvukoizolační"]
["Očekávaná hladina akustického tlaku šířená ze strojovny do venkovního prostoru, vypočtená dle frekvenčního spektra zdroje…",null,null,null,null,null,null,null,null,null,null,null,null,"Hladina akustického tlaku Lp2 šířená ze strojovny přes stavební konstrukci,",null,null,null,null,null,null,null,null,null,"Rw","dB",11,17,19,19,29,40,49,47,43]
[null,null,null,null,null,null,null,null,null,null,null,null,null,"bude dle prostoru příjmu nabývat hodnot:",null,null,null,null,null,null,null,null,null,null,null,15,21,19,24,29,55,65,65,65]
["f","Hz",31.5,63,125,250,500,1000,2000,4000,8000,"dB(A)",null,{"$f":"L41","v":67.44354998338126},null," - pro hluk šířený ze strojovny do uzavřené sousední místnosti, nebo",null,null,null,null,null,null,null,"Kingspan FR 120 mm"]
["Lp2-LIN","dB",{"$f":"IF($M$12>0,\"\",IF((C21-(C35-$C$16)-6)<0,0,C21-(C35-$C$16)-6))","v":58},{"$f":"IF($M$12>0,\"\",IF((D21-(D35-$C$16)-6)<0,0,D21-(D35-$C$16)-6))","v":62},70,68,61,53,43,34,23,{"$f":"IF($M$12>0,\"\",AU31)","v":62.904830340163628},null,{"$f":"L47","v":62.904830340163628},null," - pro hluk šířený ze strojovny do venkovního prostoru",null,null,null,null,null,null,null,"Rw","dB",8,14,17,21,23,20,31,43,42]